fUSD/lending_fUSD_20250609
["ID","MTS","AMOUNT","RATE_DAILY","PERIOD"]
[365114643,1749472079564,763.84733698,0.00015,2]
[365114644,1749472107032,1877.46986615,0.0001,2]
[365114645,1749472109051,205.84830614,7.888e-05,2]
[365114646,1749472129503,465.29628675,0.00017051,2]
[365114647,1749472129923,836.91,0.00018559,120]
[365114657,1749472202206,1018.1608621,0.0002456,120]
[365114658,1749472231131,2116.01,0.00024658,120]
[365114663,1749472236902,-404.8879995,0.00017858,2]
[365114664,1749472236914,-642.6677895,0.00017858,2]
[365114665,1749472236924,-161.3549449,0.00017948,2]
[365114666,1749472236934,-300.0,0.00018048,2]
[365114667,1749472236943,-300.0,0.00018155,2]
[365114668,1749472236953,-250.0,0.00018155,2]
[365114669,1749472236963,-1155.44597,0.00018232,2]
[365114670,1749472236972,-300.0,0.00018297,2]
[365114671,1749472236981,-195.22222241,0.00018473,2]
[365114672,1749472236990,-300.0,0.00018479,2]
[365114673,1749472237000,-1200.0,0.00018479,2]
[365114674,1749472237009,-10174.002813,0.0001848,2]
[365114675,1749472237019,-1105.52,0.00018508,2]
[365114676,1749472237028,-200.0,0.00018559,2]
[365114677,1749472237037,-1800.8,0.00018579,2]
[365114678,1749472237046,-963.97785419,0.00018665,2]
[365114679,1749472237073,-820.00214581,0.00018665,2]
[365114680,1749472237082,-849.30925419,0.00018665,2]
[365114681,1749472237093,-45.36074581,0.00018665,2]
[365114682,1749472237102,-1746.80474043,0.00018829,2]
[365114683,1749472237113,-1268.90000001,0.00018829,2]
[365114684,1749472237124,-2153.0,0.00018829,2]
[365114685,1749472237135,-845.72788746,0.00018829,2]
[365114686,1749472237146,-13549.7473721,0.00018829,2]
[365114687,1749472237156,-160.76,0.00018855,2]
[365114688,1749472237165,-1048.64,0.00018893,2]
[365114689,1749472237174,-494.48,0.00018924,2]
[365114690,1749472237183,-190.34599805,0.00018978,2]
[365114691,1749472237195,-488.34400195,0.00018978,2]
[365114692,1749472237205,-250.0,0.00019,2]
[365114693,1749472237214,-1777.10946129,0.00019016,2]
[365114697,1749472237269,-251.25053871,0.00019016,2]
[365114698,1749472237278,-166.66,0.00019141,2]
[365114699,1749472237287,-151.0,0.00019178,2]
[365114700,1749472237295,-231.58194981,0.00019178,2]
[365114701,1749472237333,-847.65805019,0.00019178,2]
[365114702,1749472237342,-166.91,0.00019178,2]
[365114703,1749472237351,-1908.15,0.00019205,30]
[365114704,1749472237360,-151.0,0.00019328,2]
[365114705,1749472237368,-850.0,0.00019337,2]
[365114706,1749472237376,-500.0,0.00019338,2]
[365114708,1749472237385,-211.88915587,0.00019338,2]
[365114710,1749472237393,-258.80205317,0.00019338,2]
[365114712,1749472237402,-500.0,0.00019338,2]
[365114715,1749472237410,-154.57168458,0.00019338,2]
[365114717,1749472237419,-597.28495389,0.00019338,2]
[365114719,1749472237429,-500.0,0.00019338,2]
[365114720,1749472237438,-185.79661804,0.00019338,2]
[365114721,1749472237447,-500.0,0.00019338,2]
[365114722,1749472237457,-544.70157491,0.00019338,2]
[365114723,1749472237467,-500.0,0.00019338,2]
[365114724,1749472237476,-500.0,0.00019338,2]
[365114725,1749472237485,-500.0,0.00019338,2]
[365114726,1749472237495,-500.0,0.00019338,2]
[365114727,1749472237504,-500.0,0.00019338,2]
[365114728,1749472237514,-4973.83,0.00019339,2]
[365114729,1749472237523,-24475.41,0.00019339,2]
[365114730,1749472237533,-1701.74568796,0.00019339,2]
[365114749,1749472237851,-944.32243661,0.00019339,2]
[365114751,1749472237865,-1471.80078007,0.00019339,2]
[365114753,1749472237876,-2076.70402768,0.00019339,2]
[365114762,1749472237967,-1804.15706768,0.00019339,2]
[365114764,1749472237977,-151.0,0.00019383,2]
[365114766,1749472237986,-151.0,0.00019438,2]
[365114768,1749472237995,-167.35,0.00019492,2]
[365114770,1749472238004,-151.0,0.00019493,2]
[365114772,1749472238013,-151.0,0.00019548,2]
[365114773,1749472238022,-420.097221,0.00019599,2]
[365114775,1749472238031,-151.0,0.00019603,2]
[365114777,1749472238041,-151.0,0.00019658,2]
[365114779,1749472238050,-151.0,0.00019713,2]
[365114781,1749472238059,-156.587,0.00019726,2]
[365114783,1749472238069,-250.0,0.00019743,2]
[365114785,1749472238078,-151.0,0.00019768,2]
[365114787,1749472238087,-152.28375605,0.000198,2]
[365114789,1749472238096,-324.27017097,0.000198,2]
[365114791,1749472238105,-152.11417384,0.000198,2]
[365114793,1749472238115,-324.27017095,0.00019811,2]
[365114795,1749472238124,-152.11417378,0.00019811,2]
[365114797,1749472238133,-152.28375605,0.00019814,2]
[365114798,1749472238143,-324.27017095,0.00019822,2]
[365114800,1749472238152,-152.11417378,0.00019822,2]
[365114802,1749472238162,-301.69346504,0.00019823,2]
[365114804,1749472238171,-152.28375605,0.00019829,2]
[365114806,1749472238180,-324.27017095,0.00019833,2]
[365114808,1749472238190,-152.11417378,0.00019833,2]
[365114810,1749472238199,-500.0,0.0001984,2]
[365114812,1749472238209,-152.28375605,0.00019843,2]
[365114814,1749472238218,-324.27017095,0.00019844,2]
[365114816,1749472238227,-152.11417378,0.00019844,2]
[365114817,1749472238236,-300.0,0.00019845,2]
[365114818,1749472238245,-324.27017095,0.00019856,2]
[365114819,1749472238255,-152.11417378,0.00019856,2]
[365114820,1749472238264,-152.28375605,0.00019857,2]
[365114821,1749472238274,-5800.0,0.00019866,2]
[365114822,1749472238283,-324.27017095,0.00019867,2]
[365114823,1749472238292,-152.11417378,0.00019867,2]
[365114824,1749472238302,-152.28375605,0.00019871,2]
[365114825,1749472238311,-500.0,0.00019873,2]
[365114826,1749472238320,-500.0,0.00019873,2]
[365114827,1749472238330,-500.0,0.00019873,2]
[365114828,1749472238339,-5800.0,0.00019875,2]
[365114829,1749472238348,-324.27017095,0.00019878,2]
[365114831,1749472238358,-5800.0,0.00019883,2]
[365114833,1749472238367,-152.28375605,0.00019886,2]
[365114835,1749472238376,-324.27017095,0.00019889,2]
[365114837,1749472238385,-881.86,0.0001989,2]
[365114839,1749472238394,-5800.0,0.00019892,2]
[365114841,1749472238403,-374.55,0.00019896,2]
[365114843,1749472238413,-2486.3438,0.00019896,2]
[365114845,1749472238423,-942.41676759,0.00019899,2]
[365114847,1749472238432,-500.0,0.00019899,2]
[365114849,1749472238442,-161.66430505,0.00019899,2]
[365114851,1749472238451,-406.68212235,0.00019899,2]
[365114853,1749472238460,-5800.0,0.000199,2]
[365114855,1749472238469,-12500.0,0.000199,2]
[365114857,1749472238478,-2000.0,0.000199,2]
[365114859,1749472238487,-2000.0,0.000199,2]
[365114861,1749472238496,-1000.0,0.000199,2]
[365114863,1749472238506,-160.36333859,0.000199,2]
[365114865,1749472238515,-157328.0,0.000199,2]
[365114867,1749472238524,-37990.5,0.000199,2]
[365114869,1749472238533,-4401.23390143,0.000199,2]
[365114871,1749472238542,-5000.0,0.000199,2]
[365114873,1749472238552,-152.28375605,0.000199,2]
[365114875,1749472238561,-246.05198787,0.000199,2]
[365114877,1749472238570,-300.0,0.00019921,2]
[365114879,1749472238580,-250.0,0.00019921,2]
[365114881,1749472238589,-500.0,0.00019965,2]
[365114883,1749472238598,-289.96409942,0.00019973,2]
[365114884,1749472238606,-500.0,0.00019973,2]
[365114886,1749472238615,-500.0,0.00019973,2]
[365114888,1749472238624,-315.01987777,0.00019973,2]
[365114890,1749472238633,-500.0,0.00019973,2]
[365114892,1749472238643,-500.0,0.00019973,2]
[365114894,1749472238652,-500.0,0.00019973,2]
[365114896,1749472238662,-500.0,0.00019973,2]
[365114898,1749472238671,-351.66912538,0.0001998,2]
[365114900,1749472238680,-881.86,0.00019986,2]
[365114902,1749472238690,-151.0,0.00019989,2]
[365114904,1749472238699,-151.0,0.0001999,2]
[365114906,1749472238708,-152.0,0.0001999,3]
[365114908,1749472238718,-162.0,0.0001999,3]
[365114910,1749472238727,-255.23575504,0.0001999,3]
[365114912,1749472238736,-152.0,0.0001999,3]
[365114914,1749472238745,-152.0,0.0001999,3]
[365114916,1749472238754,-152.0,0.0001999,3]
[365114918,1749472238765,-152.0,0.0001999,3]
[365114920,1749472238774,-159.02403957,0.0001999,3]
[365114922,1749472238783,-152.0,0.0001999,3]
[365114924,1749472238792,-152.0,0.0001999,3]
[365114926,1749472238802,-156.11838199,0.0001999,3]
[365114928,1749472238811,-500.0,0.00019992,2]
[365114930,1749472238820,-500.0,0.00019995,2]
[365114932,1749472238829,-500.0,0.00019995,2]
[365114934,1749472238838,-330.78953763,0.00019996,2]
[365114936,1749472238847,-6638.8872808,0.00019996,2]
[365114938,1749472238857,-156613.5312345,0.00019996,2]
[365114940,1749472238868,-6997.3339824,0.00019996,2]
[365114941,1749472238877,-6108.6155558,0.00019996,2]
[365114943,1749472238886,-669.40882155,0.00019999,2]
[365114945,1749472238896,-666.0,0.00019999,2]
[365114948,1749472238905,-300.0,0.00019999,2]
[365114950,1749472238915,-300.0,0.00019999,2]
[365114952,1749472238924,-2000.0,0.00019999,2]
[365114953,1749472238935,-2000.0,0.00019999,2]
[365114956,1749472238944,-531.62,0.00019999,2]
[365114958,1749472238954,-150.0,0.00019999,2]
[365114959,1749472238963,-500.0,0.00019999,2]
[365114962,1749472238974,-500.0,0.00019999,2]
[365114964,1749472238983,-500.0,0.00019999,2]
[365114966,1749472238992,-500.0,0.00019999,2]
[365114968,1749472239001,-500.0,0.00019999,2]
[365114970,1749472239010,-500.0,0.00019999,2]
[365114972,1749472239019,-500.0,0.00019999,2]
[365114974,1749472239029,-500.0,0.00019999,2]
[365114976,1749472239039,-500.0,0.00019999,2]
[365114978,1749472239048,-500.0,0.00019999,2]
[365114980,1749472239057,-500.0,0.00019999,2]
[365114982,1749472239067,-500.0,0.00019999,2]
[365114984,1749472239076,-252.04,0.00019999,2]
[365114985,1749472239085,-500.0,0.00019999,2]
[365114987,1749472239095,-500.0,0.00019999,2]
[365114989,1749472239104,-500.0,0.00019999,2]
[365114991,1749472239113,-500.0,0.00019999,2]
[365114993,1749472239122,-540.54,0.00019999,2]
[365114995,1749472239131,-14942.03450699,0.0002,3]
[365114998,1749472239142,-420243.8653009,0.0002,3]
[365114999,1749472239153,-1196.6641308,0.0002,2]
[365115001,1749472239162,-4934268.21840341,0.0002,2]
[365115004,1749472239172,-151.23873872,0.0002,2]
[365115006,1749472239181,-176410.63611915,0.0002,2]
[365115008,1749472239190,-2500.0,0.0002,2]
[365115009,1749472239199,-8300.0,0.0002,4]
[365115011,1749472239208,-45420.02011442,0.0002,4]
[365115013,1749472239217,-574181.64806121,0.0002,2]
[365115017,1749472239242,-3558.50821105,0.0002,2]
[365115020,1749472239260,-23005.0208686,0.0002,2]
[365115163,1749472240782,-3.28307816,0.00019878,2]
[365115174,1749472240886,-148.83109562,0.00019878,2]
[365115176,1749472240896,-324.27017095,0.000199,2]
[365115178,1749472240906,-6432.16996087,0.0002,2]
[365115181,1749472240924,-1405.7302248,0.0002,2]
[365115187,1749472240972,-1615.5,0.0002,2]
[365115189,1749472240982,-1745.9137563,0.0002,2]
[365115365,1749472243003,-1351.79029731,0.0002,2]
[365115373,1749472243059,-299.25183862,0.0002,2]
[365115384,1749472243144,-1915.05473287,0.0002,2]
[365115388,1749472243179,-88805.38555907,0.0002,2]
[365115675,1749472245956,-181.58056116,0.000198,2]
[365115676,1749472245969,-152.11417378,0.00019889,2]
[365115679,1749472245987,-833.29909032,0.0002,3]
[365115681,1749472245997,-6234.87844504,0.0002,2]
[365115683,1749472246008,-4185.98298866,0.0002,2]
[365115690,1749472246068,-440.36383894,0.0002,2]
[365115692,1749472246080,-710.81898075,0.0002,2]
[365115694,1749472246091,-455.0,0.0002,2]
[365115703,1749472246167,-43238.58339391,0.0002,2]
[365115835,1749472365837,196.67,0.00015245,2]
[365115836,1749472562275,1034.73516191,0.00024657,120]
[365115839,1749472717746,655.67,0.00013699,2]
[365115840,1749472718406,-151.0,0.0001726,2]
[365115841,1749472724186,-166.07675688,0.0001794,2]
[365115842,1749472765753,-133.92324312,0.0001794,2]
[365115843,1749472765776,-17.39562425,0.00018414,2]
[365115844,1749472767552,-282.60437575,0.00018414,2]
[365115845,1749472767575,-234.06435585,0.00018619,2]
[365115846,1749472872309,1928.34,0.00016936,2]
[365115847,1749473057801,1199.0,0.00024658,120]
[365115848,1749473292236,206.0,0.00016719,2]
[365115849,1749473355360,196.67,0.00014941,2]
[365115881,1749473432232,-206.0,0.00018162,3]
[365115882,1749473432242,-300.0,0.00018163,2]
[365115883,1749473432256,-300.0,0.00018164,2]
[365115884,1749473432266,-300.0,0.00018541,2]
[365115885,1749473432276,-715.58,0.00018701,2]
[365115886,1749473432286,-900.4,0.00018735,2]
[365115887,1749473432296,-167.5,0.00018859,2]
[365115888,1749473432306,-250.0,0.00018875,2]
[365115889,1749473432315,-1000.0,0.00018974,2]
[365115890,1749473432328,-1000.84197487,0.00019,4]
[365115891,1749473432339,-629.00569138,0.000191,2]
[365115892,1749473432358,-370.99430862,0.000191,2]
[365115893,1749473432367,-241.38069638,0.00019105,2]
[365115894,1749473432379,-1008.61930362,0.00019105,2]
[365115895,1749473432388,-75.89950717,0.00019123,2]
[365115896,1749473432400,-424.10049283,0.00019123,2]
[365115897,1749473432410,-151.0,0.00019178,2]
[365115898,1749473432420,-166.91,0.00019178,2]
[365115899,1749473432429,-1200.0,0.00019199,2]
[365115900,1749473432439,-1928.34,0.000192,2]
[365115901,1749473432449,-300.0,0.00019202,2]
[365115902,1749473432459,-300.0,0.00019203,2]
[365115903,1749473432469,-1669.63,0.00019205,30]
[365115904,1749473432479,-250.0,0.00019469,2]
[365115905,1749473432489,-300.0,0.00019491,2]
[365115906,1749473432499,-397.463574,0.00019599,2]
[365115907,1749473432508,-206.0,0.00019605,5]
[365115908,1749473432518,-250.0,0.00019686,2]
[365115909,1749473432527,-510.08773258,0.000197,2]
[365115910,1749473432537,-156.587,0.00019726,2]
[365115911,1749473432547,-150.0,0.00019738,2]
[365115912,1749473432557,-150.0,0.00019746,2]
[365115913,1749473432566,-252.0,0.00019748,2]
[365115914,1749473432576,-1157.18129349,0.00019771,2]
[365115917,1749473432587,-92.81870651,0.00019771,2]
[365115919,1749473432597,-1000.0,0.000198,2]
[365115921,1749473432607,-150.0,0.00019828,2]
[365115923,1749473432616,-1128.43034804,0.00019836,2]
[365115925,1749473432626,-252.41051715,0.00019839,2]
[365115928,1749473432658,-247.58948285,0.00019839,2]
[365115929,1749473432668,-500.0,0.0001984,2]
[365115930,1749473432678,-500.0,0.0001984,2]
[365115931,1749473432688,-200.0,0.0001984,2]
[365115932,1749473432697,-150.0,0.00019869,2]
[365115933,1749473432707,-152.11417378,0.00019889,2]
[365115934,1749473432716,-5565.26726794,0.000199,2]
[365115935,1749473432726,-1706.55014684,0.000199,2]
[365115936,1749473432737,-1531.91503328,0.000199,2]
[365115937,1749473432746,-5000.0,0.000199,2]
[365115938,1749473432756,-1010.74909144,0.000199,2]
[365115940,1749473432766,-500.0,0.00019965,2]
[365115942,1749473432776,-500.0,0.00019973,2]
[365115944,1749473432785,-500.0,0.00019973,2]
[365115945,1749473432795,-510.12723358,0.00019973,2]
[365115947,1749473432804,-500.0,0.00019973,2]
[365115949,1749473432814,-500.0,0.00019973,2]
[365115951,1749473432823,-500.0,0.00019973,2]
[365115953,1749473432833,-648.00540886,0.00019973,2]
[365115955,1749473432842,-500.0,0.00019973,2]
[365115957,1749473432851,-500.0,0.00019973,2]
[365115959,1749473432861,-300.0,0.00019978,2]
[365115961,1749473432871,-504.96684166,0.00019979,2]
[365115962,1749473432880,-322.14,0.00019979,2]
[365115964,1749473432890,-476.687362,0.00019979,2]
[365115966,1749473432899,-464.57838502,0.00019979,2]
[365115968,1749473432909,-4656.59513255,0.00019979,2]
[365115970,1749473432919,-75981.68037468,0.0001998,2]
[365115972,1749473432931,-472.71538587,0.0001998,2]
[365115974,1749473432946,-1521.63343658,0.0001998,2]
[365116433,1749473438150,-10377.0813877,0.0001998,2]
[365116439,1749473438210,-30668.5359746,0.0001998,2]
[365116440,1749473438220,-150.0,0.00019989,2]
[365116441,1749473438229,-500.0,0.00019992,2]
[365116442,1749473438239,-289.48823458,0.00019995,7]
[365116443,1749473438250,-174.55652178,0.00019995,2]
[365116444,1749473438261,-284.67748564,0.00019995,2]
[365116445,1749473438270,-500.0,0.00019995,2]
[365116446,1749473438279,-500.0,0.00019995,2]
[365116447,1749473438289,-500.0,0.00019995,2]
[365116448,1749473438299,-4998.0957017,0.00019996,2]
[365116450,1749473438308,-111908.1567168,0.00019996,2]
[365116451,1749473438317,-4363.2968256,0.00019996,2]
[365116453,1749473438328,-7469.2436302,0.00019996,2]
[365116455,1749473438337,-519.1184469,0.00019996,2]
[365116456,1749473438347,-300.0,0.00019999,2]
[365116457,1749473438356,-666.0,0.00019999,2]
[365116458,1749473438366,-2000.0,0.00019999,2]
[365116459,1749473438375,-1464.2548,0.00019999,2]
[365116460,1749473438385,-2000.0,0.00019999,2]
[365116461,1749473438394,-2000.0,0.00019999,2]
[365116462,1749473438404,-1000.0,0.00019999,2]
[365116463,1749473438413,-2000.0,0.00019999,2]
[365116464,1749473438423,-531.62,0.00019999,2]
[365116465,1749473438432,-500.0,0.00019999,2]
[365116466,1749473438442,-500.0,0.00019999,2]
[365116467,1749473438451,-500.0,0.00019999,2]
[365116468,1749473438461,-500.0,0.00019999,2]
[365116469,1749473438471,-500.0,0.00019999,2]
[365116470,1749473438480,-500.0,0.00019999,2]
[365116471,1749473438490,-500.0,0.00019999,2]
[365116472,1749473438499,-500.0,0.00019999,2]
[365116473,1749473438509,-500.0,0.00019999,2]
[365116474,1749473438519,-500.0,0.00019999,2]
[365116475,1749473438528,-500.0,0.00019999,2]
[365116476,1749473438539,-500.0,0.00019999,2]
[365116478,1749473438549,-252.04,0.00019999,2]
[365116480,1749473438559,-500.0,0.00019999,2]
[365116482,1749473438569,-500.0,0.00019999,2]
[365116483,1749473438578,-500.0,0.00019999,2]
[365116484,1749473438587,-500.0,0.00019999,2]
[365116485,1749473438597,-500.0,0.00019999,2]
[365116486,1749473438606,-500.0,0.00019999,2]
[365116487,1749473438616,-500.0,0.00019999,2]
[365116488,1749473438626,-500.0,0.00019999,2]
[365116489,1749473438635,-500.0,0.00019999,2]
[365116490,1749473438645,-500.0,0.00019999,2]
[365116491,1749473438654,-648.58683407,0.00019999,2]
[365116492,1749473438664,-833.29909032,0.0002,3]
[365116493,1749473438673,-14942.03450699,0.0002,3]
[365116494,1749473438683,-457166.79993684,0.0002,3]
[365116495,1749473438692,-5713681.66525886,0.0002,2]
[365116673,1749473440448,-267.17095201,0.0002,2]
[365116676,1749473440463,-1979.66937456,0.0002,2]
[365116678,1749473440474,-12183.79647797,0.0002,2]
[365116680,1749473440487,-1688.35185699,0.0002,2]
[365116682,1749473440498,-355.72425126,0.0002,2]
[365116689,1749473440565,-2379.38137614,0.0002,2]
[365116694,1749473440620,-3594.67802,0.0002,2]
[365116695,1749473440676,-657.96086,0.0002,2]
[365116819,1749473442060,204.0,0.00016719,2]
[365116955,1749473443397,-654.10406101,0.0002,2]
[365116956,1749473443409,-1318.3450002,0.0002,2]
[365116957,1749473443419,-53914.9999999,0.0002,2]
[365116960,1749473443454,-6206.5033518,0.0002,2]
[365117109,1749473446142,-663.95911129,0.0002,2]
[365117113,1749473446199,-268.987887,0.0002,2]
[365117114,1749473446210,-2297.07506595,0.0002,2]
[365117115,1749473446262,-420.40370184,0.0002,2]
[365117116,1749473446273,-289.47998079,0.0002,2]
[365117117,1749473446322,-2060.784648,0.0002,2]
[365117118,1749473446334,-1665.86474197,0.0002,2]
[365117119,1749473446431,-3434.12887577,0.0002,2]
[365117120,1749473446447,-3447.61611172,0.0002,2]
[365117121,1749473446490,-599.38775637,0.0002,2]
[365117122,1749473446501,-79892.01827324,0.0002,2]
[365117123,1749473446513,-10596.12041374,0.0002,2]
[365117124,1749473446599,-9320.70178531,0.0002,2]
[365117125,1749473446610,-3712.08920011,0.0002,2]
[365117162,1749473469743,500.0,0.0002465,120]
[365117163,1749473477514,500.0,0.0002465,120]
[365117164,1749473485138,500.0,0.0002465,120]
[365117165,1749473497581,500.0,0.0002465,120]
[365117166,1749473527582,182.0,0.00024658,120]
[365117167,1749473589102,150.0,0.00024657,120]
[365117168,1749473639335,1699.0,0.0002465,120]
[365117169,1749473699919,344.0,0.0002465,120]
[365117170,1749473702721,1826.66462832,0.00024657,120]
[365117171,1749473719629,500.0,0.0002465,120]
[365117172,1749473726151,500.0,0.0002465,120]
[365117173,1749473733752,500.0,0.0002465,120]
[365117174,1749473741807,500.0,0.0002465,120]
[365117175,1749473743834,622.88,0.00013699,2]
[365117177,1749473750136,500.0,0.0002465,120]
[365117178,1749473757966,500.0,0.0002465,120]
[365117179,1749473760058,362.82848664,0.0002465,120]
[365117180,1749473765957,500.0,0.0002465,120]
[365117181,1749473775207,500.0,0.0002465,120]
[365117182,1749473800334,500.0,0.0002465,120]
[365117183,1749473812395,500.0,0.0002465,120]
[365117184,1749473831370,500.0,0.0002465,120]
[365117185,1749473834053,1797.98,0.00017012,2]
[365117186,1749473837844,500.0,0.0002465,120]
[365117187,1749473846977,500.0,0.0002465,120]
[365117188,1749473855948,500.0,0.0002465,120]
[365117189,1749473873487,274.46671,0.0002465,120]
[365117191,1749473926268,1394.0,0.00024658,120]
[365117193,1749474089359,500.0,0.0002465,120]
[365117194,1749474096515,500.0,0.0002465,120]
[365117195,1749474103647,500.0,0.0002465,120]
[365117196,1749474113996,500.0,0.0002465,120]
[365117197,1749474162690,500.0,0.0002465,120]
[365117198,1749474175655,500.0,0.0002465,120]
[365117199,1749474182377,500.0,0.0002465,120]
[365117200,1749474191002,500.0,0.0002465,120]
[365117208,1749474503946,1521.0,0.00024658,120]
[365117224,1749474632301,-205.0,0.00018047,2]
[365117225,1749474632311,-179.26615562,0.00018648,2]
[365117226,1749474632357,-14.11598321,0.00018648,2]
[365117227,1749474632367,-499.22786117,0.00018699,2]
[365117228,1749474632474,-2485.80213883,0.00018699,2]
[365117229,1749474632484,-150.0,0.00018717,7]
[365117230,1749474632493,-1027.53,0.00018721,2]
[365117231,1749474632503,-1200.0,0.00018747,2]
[365117232,1749474632513,-595.42,0.00018748,2]
[365117233,1749474632523,-1139.86,0.0001887,2]
[365117234,1749474632533,-162.43,0.00018881,2]
[365117235,1749474632542,-212.59809903,0.000189,2]
[365117236,1749474632552,-1000.0,0.00018913,2]
[365117237,1749474632562,-300.0,0.00019005,2]
[365117238,1749474632571,-151.0,0.00019006,2]
[365117239,1749474632581,-151.65091393,0.00019006,2]
[365117240,1749474632591,-184.36869155,0.00019006,2]
[365117241,1749474632603,-315.63130845,0.00019006,2]
[365117242,1749474632612,-1000.0,0.00019006,2]
[365117243,1749474632621,-500.0,0.00019006,2]
[365117244,1749474632630,-1957.856,0.00019006,2]
[365117245,1749474632639,-556.45445388,0.00019006,2]
[365117246,1749474632651,-500.0,0.00019006,2]
[365117247,1749474632660,-151.0,0.00019006,2]
[365117248,1749474632669,-500.0,0.00019006,2]
[365117249,1749474632679,-151.0,0.00019006,2]
[365117250,1749474632688,-668.65185757,0.00019006,2]
[365117251,1749474632698,-500.0,0.00019006,2]
[365117252,1749474632707,-151.0,0.00019006,2]
[365117253,1749474632716,-500.0,0.00019006,2]
[365117254,1749474632727,-151.0,0.00019006,2]
[365117255,1749474632736,-151.0,0.00019006,2]
[365117257,1749474632745,-500.0,0.00019006,2]
[365117259,1749474632755,-151.0,0.00019006,2]
[365117261,1749474632763,-151.0,0.00019006,2]
[365117263,1749474632772,-253.77788399,0.00019006,2]
[365117265,1749474632784,-246.22211601,0.00019006,2]
[365117267,1749474632793,-500.0,0.00019006,2]
[365117269,1749474632802,-151.0,0.00019006,2]
[365117271,1749474632812,-500.0,0.00019006,2]
[365117273,1749474632821,-151.0,0.00019006,2]
[365117275,1749474632831,-500.0,0.00019006,2]
[365117277,1749474632840,-151.0,0.00019006,2]
[365117279,1749474632849,-500.0,0.00019006,2]
[365117281,1749474632858,-500.0,0.00019006,2]
[365117283,1749474632867,-500.0,0.00019006,2]
[365117285,1749474632877,-500.0,0.00019006,2]
[365117287,1749474632886,-500.0,0.00019006,2]
[365117289,1749474632895,-500.0,0.00019006,2]
[365117291,1749474632902,-500.0,0.00019006,2]
[365117292,1749474632909,-500.0,0.00019006,2]
[365117294,1749474632917,-500.0,0.00019006,2]
[365117296,1749474632926,-500.0,0.00019006,2]
[365117298,1749474632935,-500.0,0.00019006,2]
[365117300,1749474632943,-500.0,0.00019006,2]
[365117302,1749474632952,-500.0,0.00019006,2]
[365117304,1749474632960,-152.90328445,0.00019006,2]
[365117306,1749474632968,-500.0,0.00019006,2]
[365117308,1749474632976,-500.0,0.00019006,2]
[365117310,1749474632984,-500.0,0.00019006,2]
[365117312,1749474632993,-500.0,0.00019006,2]
[365117314,1749474633000,-500.0,0.00019006,2]
[365117316,1749474633008,-500.0,0.00019006,2]
[365117318,1749474633017,-500.0,0.00019006,2]
[365117320,1749474633025,-500.0,0.00019006,2]
[365117322,1749474633034,-207.4,0.00019006,2]
[365117324,1749474633043,-500.0,0.00019006,2]
[365117326,1749474633054,-500.0,0.00019006,2]
[365117328,1749474633064,-500.0,0.00019006,2]
[365117330,1749474633075,-500.0,0.00019006,2]
[365117332,1749474633086,-88.63616421,0.00019006,2]
[365117822,1749474638202,-411.36383579,0.00019006,2]
[365117824,1749474638212,-500.0,0.00019006,2]
[365117826,1749474638221,-500.0,0.00019006,2]
[365117828,1749474638231,-500.0,0.00019006,2]
[365117830,1749474638240,-21.36502392,0.00019006,2]
[365117841,1749474638340,-478.63497608,0.00019006,2]